bitfinex/quotes_SOLUSD_20220210
["timestamp","ask_amount","ask_price","bid_price","bid_amount"]
[1644494170998,5.62770753,114.04,113.98,13.26708162]
[1644494171202,1.24270753,114.04,113.98,13.26708162]
[1644494171399,4.385,114.03,113.98,58.47050366]
[1644494171601,14.40520753,114.04,113.98,58.47050366]
[1644494171800,6.0,114.03,113.98,58.47050366]
[1644494172299,14.40520753,114.04,113.98,58.47050366]
[1644494172501,7.24270753,114.04,113.98,45.30870366]
[1644494172900,13.1627,114.03,113.98,45.30870366]
[1644494174830,13.1627,114.03,113.98,58.47070366]
[1644494175027,14.40540753,114.03,113.98,58.47070366]
[1644494175827,14.40540753,114.03,113.98,45.30870366]
[1644494178731,20.40540753,114.03,113.98,45.30870366]
[1644494183338,14.40540753,114.03,113.98,45.30870366]
[1644494183539,1.24270753,114.03,113.98,58.47080366]
[1644494183740,1.24270753,114.04,113.98,58.47080366]
[1644494183941,1.24270753,114.05,113.98,58.47080366]
[1644494184139,1.24270753,114.05,113.98,13.26738162]
[1644494184342,1.24270753,114.04,113.98,0.10528162]
[1644494184540,18.79120753,114.03,113.98,0.10528162]
[1644494184842,14.40620753,114.03,113.98,0.10528162]
[1644494185042,43.34667917,114.03,113.98,0.10528162]
[1644494185442,14.40620753,114.03,113.98,0.10528162]
[1644494187144,44.83040753,114.03,113.98,0.10528162]
[1644494189450,44.83040753,114.03,113.98,41.16642415]
[1644494192452,1.24270753,114.02,113.98,41.16642415]
[1644494193750,14.40630753,114.02,113.98,0.10528162]
[1644494193951,4.385,114.01,113.98,0.10528162]
[1644494194151,6.06439994,114.0,113.98,0.10528162]
[1644494194559,48.92041853,113.99,113.98,0.10528162]
[1644494194750,66.47471853,113.99,113.98,0.10528162]
[1644494195151,67.71742606,113.99,113.98,0.10528162]
[1644494195351,43.49530753,113.99,113.98,0.10528162]
[1644494195754,49.49530753,113.99,113.98,0.10528162]
[1644494197056,48.2526,113.99,113.98,0.10528162]
[1644494197656,49.49530753,113.99,113.98,0.10528162]
[1644494198255,48.2526,113.99,113.98,0.10528162]
[1644494198456,48.2526,113.99,113.98,0.00528162]
[1644494198657,60.9126,113.99,113.98,0.00528162]
[1644494199057,84.5053,113.99,113.98,0.00528162]
[1644494199257,85.92833545,113.99,113.98,0.00528162]
[1644494199873,73.26833545,113.99,113.98,0.00528162]
[1644494200074,48.291,113.99,113.98,0.00528162]
[1644494201775,19.23069994,114.0,113.98,0.00528162]
[1644494201981,6.06439994,114.0,113.98,0.00528162]
[1644494202183,1.24270753,114.02,113.98,0.00528162]
[1644494202583,1.24270753,114.05,113.98,0.00528162]
[1644494202776,28.1197,114.07,113.98,0.00528162]
[1644494202777,1.24270753,114.06,113.98,0.00528162]
[1644494202976,1.24270753,114.06,113.98,45.75367096]
[1644494203175,1.24270753,114.06,113.99,4.385]
[1644494203376,5.55266372,114.05,113.99,13.1596]
[1644494203575,1.24270753,114.05,113.99,13.1596]
[1644494203977,7.24270753,114.05,113.99,13.1596]
[1644494204175,14.40190753,114.06,113.99,13.1596]
[1644494204375,20.40190753,114.06,113.99,13.1596]
[1644494204577,20.40190753,114.06,114.0,40.78265707]
[1644494205976,20.40190753,114.06,114.0,53.94175707]
[1644494205977,24.78590753,114.06,114.0,53.94175707]
[1644494208182,20.40190753,114.06,114.0,53.94175707]
[1644494208483,1.24270753,114.07,114.01,4.384]
[1644494208683,0.024,114.08,114.01,4.384]
[1644494208684,1.26670753,114.08,114.01,4.384]
[1644494208883,24.33020753,114.09,114.03,13.1547]
[1644494209084,0.024,114.08,114.03,13.1547]
[1644494209285,24.30620753,114.09,114.03,36.51180602]
[1644494210385,37.46250753,114.09,114.03,36.51180602]
[1644494211689,43.46250753,114.09,114.03,36.51180602]
[1644494211887,42.2198,114.09,114.03,36.51180602]
[1644494212089,36.2198,114.09,114.03,36.51180602]
[1644494215895,42.2198,114.09,114.03,36.51180602]
[1644494216496,42.2198,114.09,114.03,49.66710602]
[1644494220295,6.0,114.09,114.03,49.66710602]
[1644494220697,0.024,114.1,114.03,49.66710602]
[1644494220897,0.024,114.11,114.06,13.1521]
[1644494221100,1.24270753,114.12,114.06,13.1521]
[1644494221301,51.14600753,114.13,114.07,42.11671744]
[1644494221500,4.382,114.12,114.07,42.11671744]
[1644494221699,68.65550753,114.13,114.07,42.11671744]
[1644494222707,68.65550753,114.13,114.07,55.26761744]
[1644494222900,68.65550753,114.13,114.07,42.11671744]
[1644494223902,68.65550753,114.13,114.07,55.26771744]
[1644494224205,64.27350753,114.13,114.07,55.26771744]
[1644494224404,57.12200753,114.13,114.07,55.26771744]
[1644494224603,55.8793,114.13,114.07,55.26771744]
[1644494225925,60.2613,114.13,114.07,55.26771744]
[1644494226126,60.2613,114.13,114.07,13.151]
[1644494226329,60.2613,114.13,114.06,17.5335]
[1644494226528,60.2613,114.13,114.06,4.382]
[1644494226927,75.64372154,114.13,114.06,4.382]
[1644494227129,76.88642907,114.13,114.06,4.382]
[1644494227328,8.54862074,114.12,114.06,4.382]
[1644494227527,4.382,114.11,114.06,4.382]
[1644494228132,10.382,114.11,114.06,4.382]
[1644494228530,6.0,114.11,114.06,13.1519]
[1644494228732,51.14600753,114.13,114.06,13.1519]
[1644494228932,6.0,114.11,114.06,13.1519]
[1644494229129,4.382,114.12,114.05,60.23831355]
[1644494229130,18.77720753,114.12,114.05,60.23831355]
[1644494229530,24.77720753,114.12,114.05,60.23831355]
[1644494229730,0.71011199,114.11,114.05,60.23831355]
[1644494229933,24.77720753,114.12,114.05,73.39111355]
[1644494230435,1.24270753,114.11,114.05,73.39111355]
[1644494231132,24.77720753,114.12,114.05,73.39111355]
[1644494231835,1.24270753,114.11,114.05,73.39111355]
[1644494233441,1.24270753,114.1,114.05,73.39111355]
[1644494234233,5.64970753,114.11,114.05,73.39111355]
[1644494234436,1.24270753,114.11,114.05,73.39111355]
[1644494235335,1.26670753,114.12,114.05,73.39111355]
[1644494235939,7.26670753,114.12,114.05,73.39111355]
[1644494236135,1.24270753,114.11,114.05,73.39111355]
[1644494236334,7.26670753,114.12,114.05,73.39111355]
[1644494236534,1.24270753,114.11,114.05,73.39111355]
[1644494237335,7.26670753,114.12,114.05,75.33991482]
[1644494237735,6.024,114.12,114.05,75.58991482]
[1644494237934,7.26670753,114.12,114.05,75.58991482]
[1644494238135,6.024,114.12,114.05,75.58991482]
[1644494238335,0.024,114.12,114.05,75.58991482]
[1644494238537,6.024,114.12,114.05,75.58991482]
[1644494238738,6.024,114.12,114.06,4.382]
[1644494238940,0.024,114.12,114.07,62.68231824]
[1644494239139,6.0,114.12,114.07,62.68231824]
[1644494239338,51.12200753,114.13,114.07,62.68231824]
[1644494240140,1.24270753,114.12,114.07,62.68231824]
[1644494240840,55.50400753,114.13,114.07,62.68231824]
[1644494241039,51.12200753,114.13,114.07,62.68231824]
[1644494241441,1.24270753,114.12,114.07,62.68231824]
[1644494242739,7.24270753,114.12,114.07,62.68231824]
[1644494244339,55.50400753,114.13,114.07,62.68231824]
[1644494244540,26.12800753,114.13,114.07,67.06431824]
[1644494245142,24.8853,114.13,114.07,67.06431824]
[1644494245539,1.26670753,114.14,114.07,67.06431824]
[1644494245540,1.26670753,114.14,114.07,157.30311951]
[1644494245741,0.024,114.14,114.07,163.30311951]
[1644494245940,1.24270753,114.15,114.08,24.3346]
[1644494246139,0.024,114.14,114.1,13.1448]
[1644494246341,1.24270753,114.15,114.12,38.10306405]
[1644494246540,1.24270753,114.16,114.12,50.76306405]
[1644494246939,1.24270753,114.17,114.12,50.76306405]
[1644494247145,5.62270753,114.17,114.12,50.76306405]
[1644494247341,1.24270753,114.17,114.12,50.76306405]
[1644494247744,1.24270753,114.17,114.12,63.90756405]
[1644494248747,1.24270753,114.17,114.12,66.10636532]
[1644494248943,5.62270753,114.18,114.12,66.10636532]
[1644494249143,1.26670753,114.2,114.12,66.10636532]
[1644494249742,1.26670753,114.2,114.12,72.10636532]
[1644494249944,0.024,114.2,114.12,66.10636532]
[1644494250144,6.024,114.2,114.12,66.10636532]
[1644494250545,0.024,114.2,114.12,65.85636532]
[1644494250750,0.024,114.2,114.12,63.90756405]
[1644494250945,3.47392907,114.19,114.12,63.90756405]
[1644494251349,4.38,114.18,114.12,63.90756405]
[1644494251746,5.62270753,114.18,114.12,50.76306405]
[1644494251946,5.62270753,114.18,114.12,38.10306405]
[1644494252348,1.24270753,114.17,114.12,38.10306405]
[1644494252548,17.5277,114.16,114.12,38.10306405]
[1644494252950,1.24270753,114.17,114.12,38.10306405]
[1644494253148,25.46720753,114.18,114.12,38.10306405]
[1644494253649,31.46720753,114.18,114.12,38.10306405]
[1644494253848,30.2245,114.18,114.12,51.24806405]
[1644494254047,4.38,114.17,114.12,38.10306405]
[1644494254250,30.2245,114.18,114.12,38.10306405]
[1644494254453,31.46720753,114.18,114.12,38.10306405]
[1644494254949,31.46720753,114.18,114.1,12.66]
[1644494255151,5.62270753,114.17,114.11,13.1462]
[1644494255347,5.62270753,114.17,114.1,12.66]
[1644494255348,5.62270753,114.17,114.07,51.77675856]
[1644494255551,5.62270753,114.17,114.08,12.66]
[1644494255552,23.045,114.16,114.08,12.66]
[1644494255748,4.381,114.15,114.07,56.4848]
[1644494255949,4.381,114.15,114.08,47.78754742]
[1644494256448,4.381,114.15,114.09,13.1478]
[1644494256648,36.2168,114.16,114.09,13.1478]
[1644494256849,24.28770753,114.16,114.09,13.1478]
[1644494257049,23.045,114.16,114.09,13.1478]
[1644494257951,24.28770753,114.16,114.09,13.1478]
[1644494258254,32.50015285,114.16,114.09,13.1478]
[1644494258453,32.50015285,114.16,114.08,60.93714742]
[1644494258650,18.77330753,114.15,114.08,60.93714742]
[1644494259251,18.77330753,114.15,114.08,47.78754742]
[1644494259653,1.24270753,114.14,114.08,47.78754742]
[1644494259853,17.5327,114.13,114.08,47.78754742]
[1644494260454,13.1517,114.13,114.08,47.78754742]
[1644494263061,1.26670753,114.14,114.08,60.93734742]
[1644494263261,1.26670753,114.15,114.08,60.93734742]
[1644494264361,7.26670753,114.15,114.08,60.93734742]
[1644494264562,1.26670753,114.15,114.08,60.93734742]
[1644494264762,14.41560753,114.15,114.08,60.93734742]
[1644494264961,20.41560753,114.15,114.08,60.93734742]
[1644494265362,20.41560753,114.15,114.09,25.8083]
[1644494267185,7.26670753,114.15,114.09,25.8083]
[1644494267385,6.024,114.15,114.09,25.8083]
[1644494267786,0.024,114.15,114.09,27.76025856]
[1644494267986,24.28770753,114.16,114.09,27.76025856]
[1644494268187,1.26670753,114.16,114.09,27.76025856]
[1644494268389,1.24270753,114.16,114.09,57.96665856]
[1644494268590,1.26670753,114.17,114.09,57.96665856]
[1644494269189,1.26670753,114.17,114.09,49.7647]
[1644494269487,14.39060753,114.16,114.09,49.7647]
[1644494269689,18.77160753,114.16,114.09,49.7647]
[1644494269887,14.39060753,114.16,114.09,49.7647]
[1644494270289,14.39060753,114.16,114.09,25.8083]
[1644494270488,1.24270753,114.15,114.09,13.1483]
[1644494270691,14.41460753,114.16,114.09,13.1483]
[1644494270887,14.39060753,114.16,114.09,13.1483]
[1644494271090,5.62370753,114.15,114.09,13.1483]
[1644494271290,1.24270753,114.14,114.09,13.1483]
[1644494271493,24.99940753,114.15,114.09,13.1483]
[1644494273691,29.38040753,114.15,114.09,13.1483]
[1644494274894,24.99940753,114.15,114.09,13.1483]
[1644494275594,30.99940753,114.15,114.09,13.1483]
[1644494276299,35.38040753,114.15,114.09,13.1483]
[1644494277600,30.99940753,114.15,114.09,13.1483]
[1644494277999,7.24270753,114.15,114.09,13.1483]
[1644494279099,1.24270753,114.13,114.08,65.31844742]
[1644494279300,1.24270753,114.13,114.08,60.93744742]
[1644494280205,14.39360753,114.13,114.08,47.78754742]
[1644494280404,1.24270753,114.12,114.08,47.78754742]
[1644494280807,14.39360753,114.13,114.08,47.78754742]
[1644494281107,1.24270753,114.12,114.08,47.78754742]
[1644494283810,7.24270753,114.12,114.08,47.78754742]
[1644494284013,1.24270753,114.12,114.08,47.78754742]
[1644494284212,7.24270753,114.12,114.08,47.78754742]
[1644494284611,7.24270753,114.12,114.07,13.1509]
[1644494284813,11.62470753,114.12,114.07,13.1509]
[1644494285311,11.62470753,114.12,114.05,35.3704]
[1644494285312,24.77670753,114.12,114.06,13.152]
[1644494285512,20.39470753,114.12,114.06,13.152]
[1644494285814,1.24270753,114.11,114.06,13.152]
[1644494286014,1.24270753,114.11,114.03,37.17575856]
[1644494286214,5.62570753,114.1,114.01,1.95195856]
[1644494286517,14.39860753,114.09,114.01,13.1572]
[1644494286813,5.62670753,114.08,114.01,13.1572]
[1644494287015,22.745,114.08,114.01,17.5412]
[1644494287413,22.745,114.08,114.01,30.2012]
[1644494287615,22.745,114.08,114.02,48.00862931]
[1644494288218,22.745,114.08,114.02,61.16412931]
[1644494288918,14.39730753,114.1,114.02,61.16412931]
[1644494289121,27.3354,114.09,114.02,61.16412931]
[1644494290617,22.9524,114.09,114.02,61.16412931]
[1644494291019,4.383,114.08,114.01,13.1567]
[1644494291319,5.62570753,114.08,113.98,0.00528162]
[1644494291519,3.47392907,114.07,113.98,0.00528162]
[1644494291721,4.385,114.06,113.98,0.00528162]
[1644494291919,1.24270753,114.05,113.98,0.00528162]
[1644494292120,1.24270753,114.06,113.98,0.00528162]
[1644494292320,1.24270753,114.07,113.98,0.00528162]
[1644494292622,4.385,114.06,113.98,0.00528162]
[1644494293121,24.7313,114.08,113.98,50.69691739]
[1644494293339,24.7313,114.08,113.98,82.76601739]
[1644494293942,24.7313,114.08,113.99,4.384]
[1644494294141,24.7313,114.08,114.0,12.66]
[1644494294343,24.7313,114.08,114.0,20.61195856]
[1644494294640,24.7313,114.08,114.01,1.95195856]
[1644494295041,24.7313,114.08,114.0,12.66]
[1644494295242,24.7313,114.08,114.01,1.95195856]
[1644494295442,24.7313,114.08,114.02,41.01683898]
[1644494295741,30.7313,114.08,114.02,41.01683898]
[1644494296242,43.8888,114.08,114.02,41.01683898]
[1644494296946,4.384,114.07,114.02,41.01683898]
[1644494297144,4.384,114.07,113.98,23.09178162]
[1644494297341,4.384,114.07,113.98,0.00528162]
[1644494297543,13.1613,114.05,113.98,0.00528162]
[1644494297743,4.385,114.04,113.98,0.00528162]
[1644494298143,4.385,114.05,113.98,0.00528162]
[1644494298744,13.1641,114.03,113.98,0.00528162]
[1644494298944,4.385,114.05,113.98,0.00528162]
[1644494299344,4.385,114.07,113.98,0.00528162]
[1644494299547,24.7313,114.08,113.99,4.385]
[1644494299746,4.384,114.07,114.0,43.81903864]
[1644494300546,28.0989,114.07,114.0,43.81903864]
[1644494301848,41.2575,114.07,114.0,43.81903864]
[1644494306748,47.2575,114.07,114.0,43.81903864]
[1644494307553,42.8735,114.07,114.0,43.81903864]
[1644494308750,42.8735,114.07,114.0,56.97653864]
[1644494311054,29.7149,114.07,114.0,56.97653864]
[1644494311254,1.24270753,114.09,114.02,13.1555]
[1644494311460,1.24270753,114.11,114.03,17.043]
[1644494311655,1.24270753,114.11,114.03,18.99495856]
[1644494311857,1.24270753,114.11,114.03,12.66]
[1644494312056,33.51646868,114.1,114.01,26.92755856]
[1644494312256,13.1574,114.08,114.01,24.9756]
[1644494312456,13.1574,114.08,114.0,69.63643864]
[1644494312659,4.384,114.07,114.0,69.63643864]
[1644494313058,4.384,114.08,114.0,69.63643864]
[1644494313858,13.1585,114.07,114.0,69.63643864]
[1644494314759,19.1585,114.07,114.0,69.63643864]
[1644494315864,4.384,114.06,114.0,69.63643864]
[1644494316062,5.08355149,114.06,114.0,69.63643864]
[1644494316562,27.8802,114.06,114.0,69.63643864]
[1644494318263,23.4962,114.06,114.0,69.63643864]
[1644494318464,29.4962,114.06,114.0,69.63643864]
[1644494319365,42.6557,114.06,114.0,43.81903864]
[1644494319568,4.384,114.05,113.99,17.5681]
[1644494319765,4.384,114.05,113.99,4.408]
[1644494320065,5.62670753,114.05,113.99,4.384]
[1644494320371,1.24270753,114.04,113.99,4.384]
[1644494320565,13.1628,114.03,113.98,42.58786872]
[1644494320767,24.8023,114.04,113.98,42.61186872]
[1644494320967,24.8023,114.04,113.98,42.58786872]
[1644494321569,24.8023,114.04,113.98,55.74926872]
[1644494321771,30.43000753,114.04,113.98,42.58786872]
[1644494322170,29.1873,114.04,113.98,42.58786872]
[1644494322369,24.8023,114.04,113.98,42.58786872]
[1644494322568,37.9639,114.04,113.98,42.58786872]
[1644494323871,43.9639,114.04,113.98,42.58786872]
[1644494324270,30.8023,114.04,113.98,55.74926872]
[1644494325770,48.3489,114.04,113.98,55.74926872]
[1644494325972,48.3489,114.04,113.98,42.58786872]
[1644494326170,49.59160753,114.04,113.98,42.58786872]
[1644494326470,45.20660753,114.04,113.98,42.58786872]
[1644494326672,43.9639,114.04,113.98,42.58786872]
[1644494326870,48.3489,114.04,113.98,42.58786872]
[1644494327769,49.59160753,114.04,113.98,42.58786872]
[1644494327970,45.20660753,114.04,113.98,42.58786872]
[1644494330374,43.9639,114.04,113.98,42.58786872]
[1644494336406,43.9639,114.04,113.98,0.00528162]
[1644494336612,46.19512154,114.04,113.98,0.00528162]
[1644494336808,4.385,114.03,113.98,0.00528162]
[1644494337011,13.1678,114.02,113.98,0.00528162]
[1644494337209,4.385,114.01,113.98,0.00528162]
[1644494337409,31.01719994,114.0,113.98,0.00528162]
[1644494338811,44.18569994,114.0,113.98,0.00528162]
[1644494339810,50.18569994,114.0,113.98,0.00528162]
[1644494343712,54.57169994,114.0,113.98,0.00528162]
[1644494344713,4.386,113.99,113.98,0.00528162]
[1644494344916,41.25641619,113.99,113.98,0.00528162]
[1644494345316,43.48763773,113.99,113.98,0.00528162]
[1644494345513,71.0,113.98,113.89,0.024]
[1644494345714,1.25068833,113.96,113.92,0.024]
[1644494345914,13.1729,113.95,113.92,0.024]
[1644494346115,13.1729,113.95,113.87,12.66]
[1644494346116,1.25068833,113.97,113.88,17.048]
[1644494346313,22.8122,113.97,113.88,17.048]
[1644494346517,22.8122,113.97,113.89,0.024]
[1644494346714,22.8122,113.97,113.9,12.66]
[1644494346914,13.1698,113.98,113.91,38.97184711]
[1644494347116,48.57718833,113.99,113.91,38.97184711]
[1644494347316,47.3265,113.99,113.91,51.63184711]
[1644494347718,53.3265,113.99,113.91,51.63184711]
[1644494348017,53.3265,113.99,113.91,64.80014711]
[1644494348217,6.0,113.99,113.91,64.80014711]
[1644494348619,13.1665,114.0,113.91,64.80014711]
[1644494348918,23.84538833,114.01,113.92,0.024]
[1644494349122,22.5947,114.01,113.93,12.66]
[1644494349322,35.7603,114.01,113.93,30.4857]
[1644494349921,13.1656,114.01,113.93,30.2357]
[1644494350121,13.1656,114.01,113.93,30.4857]
[1644494351321,13.1656,114.01,113.93,36.4857]
[1644494352325,13.1656,114.01,113.93,36.2357]
[1644494352526,19.1656,114.01,113.93,30.2357]
[1644494352726,4.386,114.0,113.93,25.8497]
[1644494352928,17.5525,114.0,113.93,25.8497]
[1644494354034,13.1665,114.0,113.93,12.684]
[1644494354236,13.1665,114.0,113.93,0.024]
[1644494354436,13.1665,114.0,113.92,23.569]
[1644494354635,28.5658,113.99,113.92,0.024]
[1644494354833,13.1711,113.97,113.91,47.26784711]
[1644494355033,4.388,113.96,113.91,47.26784711]
[1644494355434,4.388,113.98,113.91,47.26784711]
[1644494355837,13.17,113.97,113.91,47.26784711]
[1644494357133,13.17,113.97,113.91,12.684]
[1644494357535,4.388,113.96,113.91,12.684]
[1644494357735,17.5601,113.96,113.91,12.684]
[1644494357936,13.1721,113.96,113.91,12.684]
[1644494359337,19.1721,113.96,113.91,12.684]
[1644494361555,4.388,113.95,113.89,0.024]
[1644494361756,13.1745,113.94,113.88,0.024]
[1644494362055,13.1745,113.94,113.87,12.66]
[1644494362259,20.86405871,113.94,113.87,52.91470039]
[1644494362455,20.86405871,113.94,113.87,48.52570039]
[1644494362658,4.389,113.93,113.87,48.52570039]
[1644494362855,4.389,113.95,113.87,48.50170039]
[1644494363057,4.389,113.95,113.87,48.52570039]
[1644494363458,13.175,113.93,113.87,48.52570039]
[1644494363756,13.175,113.93,113.87,48.50170039]
[1644494367562,13.175,113.93,113.87,61.67570039]
[1644494367762,4.389,113.95,113.87,61.67570039]
[1644494367963,48.3054,113.96,113.87,61.67570039]
[1644494368163,48.3054,113.96,113.87,61.69970039]
[1644494368763,13.1736,113.94,113.87,61.69970039]
[1644494370366,19.1736,113.94,113.87,61.69970039]
[1644494371866,4.389,113.93,113.87,25.858]
[1644494372068,13.1776,113.91,113.86,0.024]
[1644494372267,13.1776,113.91,113.85,22.8339]
[1644494373070,4.39,113.9,113.85,22.8339]
[1644494373268,17.5687,113.9,113.85,22.8339]
[1644494373470,13.1787,113.9,113.84,56.26324928]
[1644494373670,13.1787,113.9,113.84,56.23924928]
[1644494373971,4.39,113.92,113.84,68.89924928]
[1644494374171,4.39,113.95,113.85,4.39]
[1644494374372,13.1746,113.93,113.87,13.1746]
[1644494374571,13.1746,113.93,113.88,37.49641797]
[1644494374770,19.1746,113.93,113.88,37.49641797]
[1644494374971,19.1746,113.93,113.87,0.024]
[1644494375176,4.389,113.92,113.86,0.024]
[1644494375371,13.1775,113.91,113.84,0.024]
[1644494375570,13.1775,113.91,113.83,13.1782]
[1644494375571,4.39,113.9,113.83,0.024]
[1644494375771,29.3251,113.9,113.84,0.024]
[1644494375970,24.9351,113.9,113.82,0.024]
[1644494376373,4.391,113.89,113.82,0.024]
[1644494377874,13.1822,113.88,113.82,13.2039]
[1644494379377,13.1791,113.89,113.82,13.2039]
[1644494379782,13.1791,113.89,113.82,26.1139]
[1644494380384,68.6537,113.93,113.83,4.391]
[1644494380584,24.7266,113.93,113.85,13.1759]
[1644494380788,30.7266,113.93,113.86,37.50904457]
[1644494381284,30.7266,113.93,113.86,37.53304457]
[1644494382789,13.1755,113.92,113.86,50.70774457]
[1644494386087,37.901,113.93,113.86,50.70774457]
[1644494386287,42.291,113.93,113.86,50.70774457]
[1644494386886,48.291,113.93,113.86,50.70774457]
[1644494387104,42.291,113.93,113.86,50.70774457]
[1644494387304,37.901,113.93,113.86,50.70774457]
[1644494387905,43.901,113.93,113.86,50.70774457]
[1644494388104,37.901,113.93,113.86,50.70774457]
[1644494389409,37.901,113.93,113.86,55.09774457]
[1644494389908,43.901,113.93,113.86,55.09774457]
[1644494390409,48.291,113.93,113.86,50.70774457]
[1644494390611,43.901,113.93,113.86,55.09774457]
[1644494391711,48.291,113.93,113.86,50.70774457]
[1644494394215,43.901,113.93,113.86,50.70774457]
[1644494395713,43.901,113.93,113.86,63.36774457]
[1644494397817,4.39,113.92,113.86,63.36774457]
[1644494398018,17.5659,113.92,113.86,50.70774457]
[1644494398218,13.1759,113.92,113.86,50.70774457]
[1644494398619,36.5155,113.92,113.86,50.70774457]
[1644494401821,42.5155,113.92,113.86,37.53304457]
[1644494402422,23.3396,113.92,113.86,54.83304457]
[1644494402621,121.08868833,113.96,113.86,68.00934457]
[1644494402823,4.389,113.95,113.87,0.024]
[1644494403023,30.39468833,113.96,113.88,12.66]
[1644494403222,29.144,113.96,113.88,12.66]
[1644494403423,4.389,113.95,113.88,12.66]
[1644494403629,29.144,113.96,113.88,12.91]
[1644494403827,23.144,113.96,113.89,13.1719]
[1644494404024,23.144,113.96,113.89,17.5839]
[1644494404226,23.144,113.96,113.9,12.66]
[1644494404427,30.51058833,113.99,113.9,17.048]
[1644494404625,54.86778833,113.99,113.9,17.322]
[1644494404826,54.86778833,113.99,113.91,46.87743816]
[1644494405023,50.47878833,113.99,113.91,59.53743816]
[1644494405526,56.47878833,113.99,113.91,59.53743816]
[1644494405824,13.1699,113.97,113.91,72.70653816]
[1644494406425,13.1699,113.97,113.91,72.95653816]
[1644494406624,49.2281,113.99,113.91,72.95653816]
[1644494406825,30.3572,113.99,113.92,4.386]
[1644494407025,6.0,113.99,113.95,35.76014571]
[1644494407428,17.5525,114.01,113.95,35.76014571]
[1644494407627,19.1665,114.01,113.95,35.76014571]
[1644494407826,13.1665,114.01,113.95,35.76014571]
[1644494408027,19.1665,114.01,113.95,35.76014571]
[1644494408227,13.1665,114.01,113.95,35.76014571]
[1644494408429,13.1646,114.02,113.95,49.17544571]
[1644494408627,13.1646,114.02,113.95,48.92544571]
[1644494408828,4.386,114.01,113.95,49.17544571]
[1644494409028,4.386,114.01,113.95,48.92544571]
[1644494409229,6.53079114,113.98,113.95,35.76014571]
[1644494409430,6.06439994,113.97,113.95,35.76014571]
[1644494409829,13.06158228,113.98,113.95,35.76014571]
[1644494411233,13.06158228,113.98,113.94,17.5524]
[1644494411432,3.03219997,113.97,113.94,17.5524]
[1644494411632,3.03219997,113.97,113.94,4.386]
[1644494411836,3.03219997,113.96,113.93,25.8281]
[1644494412133,3.03219997,113.96,113.93,60.69456954]
[1644494412332,13.06158228,113.98,113.93,60.69456954]
[1644494412534,19.06158228,113.98,113.93,60.69456954]
[1644494412932,32.23078228,113.98,113.93,47.52646954]
[1644494413132,32.23078228,113.98,113.93,12.66]
[1644494413333,4.386,113.97,113.9,0.024]
[1644494413535,28.6229,113.97,113.9,12.66]
[1644494413735,28.6229,113.97,113.9,12.684]
[1644494413936,28.6229,113.97,113.9,0.024]
[1644494414135,28.6229,113.97,113.89,0.024]
[1644494414340,28.6229,113.97,113.88,34.67357685]
[1644494414542,41.7933,113.97,113.89,0.024]
[1644494414734,13.06158228,113.92,113.89,13.1968]
[1644494414936,13.06158228,113.92,113.89,13.1728]
[1644494416939,3.03219997,113.91,113.88,47.82357685]
[1644494417339,13.06158228,113.92,113.88,47.82357685]
[1644494417742,13.06158228,113.92,113.88,13.174]
[1644494417939,13.06158228,113.92,113.86,25.8593]
[1644494418140,13.06158228,113.92,113.86,13.1993]
[1644494418340,19.06158228,113.92,113.86,13.1993]
[1644494418540,4.39,113.91,113.86,0.024]
[1644494418739,8.5545158,113.91,113.84,164.06133641]
[1644494418940,8.5545158,113.91,113.84,126.984]
[1644494419341,32.5351158,113.91,113.84,126.984]
[1644494419740,45.7131158,113.91,113.84,140.1628]
[1644494419942,6.53079114,113.88,113.84,188.89716876]
[1644494420143,6.53079114,113.88,113.84,188.87316876]
[1644494420345,13.06158228,113.88,113.84,188.87316876]
[1644494421059,13.06158228,113.88,113.84,140.1388]
[1644494424061,13.06158228,113.88,113.84,25.8388]
[1644494424961,6.53079114,113.88,113.84,25.8388]
[1644494425365,6.53079114,113.86,113.84,25.8388]
[1644494425661,6.53079114,113.85,113.84,25.8388]
[1644494427165,9.56299111,113.85,113.84,25.8388]
[1644494427363,6.53079114,113.85,113.84,25.8388]
[1644494427563,6.53079114,113.85,113.82,30.2544]